fUST/lending_fUST_20251117
["ID","MTS","AMOUNT","RATE_DAILY","PERIOD"]
[394175761,1763353839402,-500.0,0.00021988,2]
[394175762,1763353839411,-500.0,0.00021988,2]
[394175764,1763353839421,-500.0,0.00021988,2]
[394175765,1763353839431,-500.0,0.00021988,2]
[394175767,1763353839440,-500.0,0.00021988,2]
[394175768,1763353839450,-500.0,0.00021988,2]
[394175769,1763353839459,-500.0,0.00021988,2]
[394175770,1763353839468,-500.0,0.00021988,2]
[394175771,1763353839477,-500.0,0.00021989,2]
[394175772,1763353839486,-43924.08371883,0.0002199,2]
[394175773,1763353839496,-7322.24,0.00022,7]
[394175774,1763353839505,-422.34,0.00022,14]
[394175775,1763353839515,-209.44,0.00022,7]
[394175776,1763353839526,-794.58204633,0.00022008,2]
[394175777,1763353839535,-500.0,0.00022263,2]
[394175778,1763353839545,-150.0,0.00022315,2]
[394175779,1763353839555,-500.0,0.00022537,2]
[394175780,1763353839565,-1659.88221026,0.00022691,2]
[394175781,1763353839574,-500.0,0.000227,2]
[394175782,1763353839584,-500.0,0.000227,2]
[394175783,1763353839593,-513.64025914,0.000227,2]
[394175784,1763353839603,-593.21413216,0.000227,2]
[394175785,1763353839612,-501.47392707,0.000227,2]
[394175786,1763353839621,-503.94861877,0.000227,2]
[394175787,1763353839631,-500.0,0.000227,2]
[394175788,1763353839640,-500.0,0.000227,2]
[394175789,1763353839650,-500.0,0.00022811,2]
[394175790,1763353839659,-4849.17620165,0.00022871,2]
[394175791,1763353839669,-502.92139257,0.00022973,2]
[394175792,1763353839679,-161.01806223,0.00022973,2]
[394175793,1763353839688,-502.26261043,0.00022973,2]
[394175794,1763353839698,-575.56467831,0.00022973,2]
[394175795,1763353839707,-500.0,0.00022973,2]
[394175796,1763353839716,-206.521111,0.00022973,7]
[394175797,1763353839726,-206.521111,0.00022973,7]
[394175798,1763353839740,-206.521111,0.00022973,7]
[394175799,1763353839749,-206.521111,0.00022973,7]
[394175800,1763353839760,-151.0,0.00022973,7]
[394175801,1763353839781,-151.0,0.00022973,7]
[394175802,1763353839895,-151.0,0.00022973,7]
[394175803,1763353839905,-151.0,0.00022975,2]
[394175804,1763353839916,-151.0,0.00022975,2]
[394175805,1763353839926,-151.0,0.00022975,2]
[394175806,1763353839935,-151.0,0.00022975,2]
[394175807,1763353839944,-151.0,0.00022975,2]
[394175808,1763353839954,-151.0,0.00022975,2]
[394175809,1763353839964,-151.0,0.00022975,2]
[394175810,1763353839974,-151.0,0.00022975,2]
[394175811,1763353839983,-151.0,0.00022975,2]
[394175812,1763353839993,-270.73879904,0.00022975,2]
[394175813,1763353840003,-151.0,0.00022988,7]
[394175814,1763353840013,-151.0,0.00022988,7]
[394175815,1763353840023,-151.0,0.0002299,2]
[394175816,1763353840034,-151.0,0.0002299,2]
[394175817,1763353840043,-151.0,0.0002299,2]
[394175818,1763353840055,-151.0,0.0002299,2]
[394175819,1763353840065,-151.0,0.0002299,7]
[394175820,1763353840074,-151.0,0.0002299,7]
[394175821,1763353840084,-151.0,0.0002299,7]
[394175822,1763353840095,-151.0,0.0002299,7]
[394175823,1763353840104,-233.012568,0.0002299,7]
[394175824,1763353840114,-500.0,0.00023084,2]
[394175825,1763353840124,-500.0,0.00023085,2]
[394175826,1763353840133,-430.73903705,0.00023248,2]
[394175827,1763353840143,-517.26996116,0.00023248,2]
[394175828,1763353840152,-436.00854889,0.00023248,2]
[394175829,1763353840162,-4849.17620164,0.00023353,2]
[394175830,1763353840171,-500.0,0.00023359,2]
[394175831,1763353840181,-893.40170925,0.00023432,2]
[394175832,1763353840190,-330.0,0.00023466,2]
[394175834,1763353840200,-1000.0,0.00023521,2]
[394175836,1763353840209,-500.0,0.00023633,2]
[394175838,1763353840219,-283.0,0.00023788,2]
[394175840,1763353840228,-420.0,0.00023788,2]
[394175841,1763353840237,-203.0,0.00023788,2]
[394175842,1763353840247,-4849.17620164,0.00023836,2]
[394175843,1763353840256,-154.0,0.00023895,2]
[394175844,1763353840266,-1680.0,0.00023899,2]
[394175845,1763353840275,-500.0,0.00023907,2]
[394175846,1763353840284,-775.08,0.00023972,2]
[394175847,1763353840294,-495.28841905,0.00023973,2]
[394175848,1763353840303,-502.44158823,0.00023973,2]
[394175849,1763353840313,-501.81896579,0.00023973,2]
[394175850,1763353840323,-151.0,0.00023973,7]
[394175851,1763353840332,-2683.23,0.00023978,3]
[394175852,1763353840342,-184.827,0.00023978,5]
[394175853,1763353840351,-185.66243053,0.00023978,5]
[394175855,1763353840360,-1341.61,0.00023978,3]
[394175856,1763353840369,-1118.01,0.00023978,3]
[394175857,1763353840379,-559.01,0.00023978,3]
[394175858,1763353840387,-559.01,0.00023978,3]
[394175859,1763353840396,-775.08,0.00023987,2]
[394175860,1763353840405,-775.08,0.00023987,2]
[394175861,1763353840415,-775.08,0.00023987,2]
[394175862,1763353840425,-775.08,0.00023987,2]
[394175863,1763353840434,-775.08,0.00023987,2]
[394175864,1763353840444,-775.08,0.00023987,2]
[394175865,1763353840453,-775.08,0.00023987,2]
[394175866,1763353840463,-775.08,0.00023987,2]
[394175867,1763353840472,-775.08,0.00023987,2]
[394175868,1763353840482,-775.08,0.00023987,2]
[394175869,1763353840492,-775.08,0.00023987,2]
[394175870,1763353840502,-775.08,0.00023987,2]
[394175871,1763353840512,-775.08,0.00023987,2]
[394175872,1763353840523,-775.08,0.00023987,2]
[394175873,1763353840532,-775.08,0.00023987,2]
[394175874,1763353840541,-775.08,0.00023987,2]
[394175875,1763353840553,-775.08,0.00023987,2]
[394175876,1763353840563,-775.08,0.00023987,2]
[394175877,1763353840573,-775.08,0.00023987,2]
[394175878,1763353840583,-775.08,0.00023987,2]
[394175879,1763353840594,-775.08,0.00023987,2]
[394175880,1763353840603,-775.08,0.00023987,2]
[394175881,1763353840613,-775.31545856,0.00023987,2]
[394175882,1763353840622,-500.0,0.00023989,2]
[394175883,1763353840631,-500.0,0.00023989,2]
[394175884,1763353840640,-151.0,0.0002399,7]
[394175885,1763353840649,-197.929447,0.0002399,7]
[394175886,1763353840658,-197.929447,0.0002399,7]
[394175887,1763353840668,-197.929447,0.0002399,7]
[394175888,1763353840677,-197.929447,0.0002399,7]
[394175889,1763353840687,-271.67134,0.0002399,7]
[394175890,1763353840696,-271.67134,0.0002399,7]
[394175891,1763353840705,-151.0,0.0002399,7]
[394175893,1763353840715,-271.67134,0.0002399,7]
[394175894,1763353840725,-271.67134,0.0002399,7]
[394175895,1763353840736,-151.0,0.0002399,7]
[394175896,1763353840746,-151.0,0.0002399,7]
[394175897,1763353840755,-1500.0,0.00024068,2]
[394175898,1763353840765,-93174.98469064,0.00024142,2]
[394175899,1763353840775,-500.90036308,0.00024173,2]
[394175900,1763353840785,-500.81441983,0.00024173,2]
[394175901,1763353840794,-500.0,0.00024173,2]
[394175902,1763353840803,-500.0,0.00024173,2]
[394175903,1763353840813,-518.08160207,0.00024173,2]
[394175904,1763353840823,-500.0,0.00024173,2]
[394175905,1763353840832,-509.45721812,0.00024173,2]
[394175906,1763353840841,-500.0,0.00024173,2]
[394175907,1763353840851,-500.0,0.0002418,2]
[394175908,1763353840860,-500.0,0.00024181,2]
[394175909,1763353840869,-160.0,0.000242,2]
[394175910,1763353840878,-151.0,0.00024263,7]
[394175911,1763353840887,-177.0,0.00024315,2]
[394175912,1763353840896,-4849.17620164,0.00024318,2]
[394175913,1763353840906,-500.0,0.00024455,2]
[394175914,1763353840915,-209.44,0.000245,7]
[394175915,1763353840924,-2000.0,0.00024616,2]
[394175916,1763353840934,-24236.25939832,0.0002465,2]
[394175917,1763353840942,-380.0,0.00024658,2]
[394175918,1763353840952,-151.0,0.00024658,7]
[394175919,1763353840961,-422.34,0.000247,14]
[394175920,1763353840971,-1004.49475929,0.00024721,2]
[394175921,1763353840981,-1001.94711302,0.00024721,2]
[394175922,1763353840991,-1000.0,0.00024721,2]
[394175923,1763353841009,-1041.04800509,0.00024721,2]
[394175924,1763353841027,-400.67432439,0.00024722,2]
[394175925,1763353841037,-500.0,0.00024729,2]
[394175926,1763353841047,-260.0,0.00024748,2]
[394175927,1763353841057,-16754.58798679,0.00024774,2]
[394175928,1763353841066,-206.521111,0.00024774,7]
[394175929,1763353841075,-206.521111,0.00024774,7]
[394175930,1763353841085,-206.521111,0.00024774,7]
[394175931,1763353841094,-206.521111,0.00024774,7]
[394175932,1763353841104,-151.0,0.00024774,7]
[394175933,1763353841113,-151.0,0.00024774,7]
[394175934,1763353841123,-151.0,0.00024774,7]
[394175935,1763353841132,-111608.765071,0.000248,2]
[394175936,1763353841142,-4849.17620164,0.000248,2]
[394175937,1763353841152,-7322.24,0.000248,7]
[394175938,1763353841161,-151.0,0.000249,7]
[394175939,1763353841171,-151.0,0.000249,2]
[394175940,1763353841180,-151.0,0.000249,2]
[394175941,1763353841189,-151.0,0.000249,2]
[394175942,1763353841199,-151.0,0.000249,2]
[394175943,1763353841209,-151.0,0.000249,7]
[394175944,1763353841218,-151.0,0.000249,7]
[394175945,1763353841228,-151.0,0.000249,7]
[394175946,1763353841238,-151.0,0.000249,7]
[394175947,1763353841247,-162.920668,0.000249,7]
[394175948,1763353841256,-789947.110122,0.000249,2]
[394175949,1763353841266,-151.0,0.000249,7]
[394175950,1763353841275,-155.183638,0.000249,7]
[394175951,1763353841285,-206.521111,0.000249,7]
[394175952,1763353841294,-206.521111,0.000249,7]
[394175953,1763353841304,-206.521111,0.000249,7]
[394175954,1763353841313,-206.521111,0.000249,7]
[394175955,1763353841323,-151.0,0.000249,7]
[394175956,1763353841332,-151.0,0.000249,7]
[394175957,1763353841343,-10146.2513701,0.00024955,2]
[394175958,1763353841353,-500.0,0.00024955,2]
[394175959,1763353841364,-1000.0,0.00024965,2]
[394175960,1763353841374,-1000.0,0.00024965,2]
[394175961,1763353841384,-1000.0,0.00024965,2]
[394175962,1763353841396,-1000.0,0.00024965,2]
[394175963,1763353841405,-1016.95258603,0.00024965,2]
[394175964,1763353841414,-151.0,0.00024966,7]
[394175965,1763353841424,-151.0,0.00024966,7]
[394175966,1763353841433,-197.929447,0.00024966,7]
[394175967,1763353841443,-197.929447,0.00024966,7]
[394175968,1763353841452,-197.929447,0.00024966,7]
[394175969,1763353841462,-197.929447,0.00024966,7]
[394175970,1763353841471,-271.67134,0.00024966,7]
[394175971,1763353841480,-271.67134,0.00024966,7]
[394175972,1763353841490,-271.67134,0.00024966,7]
[394175973,1763353841499,-151.0,0.00024966,7]
[394175974,1763353841509,-271.67134,0.00024966,7]
[394175975,1763353841518,-156.542671,0.00024966,7]
[394175976,1763353841527,-151.0,0.00024966,7]
[394175977,1763353841537,-501.98604669,0.00024973,2]
[394175978,1763353841546,-500.0,0.00024973,2]
[394175979,1763353841556,-624.42180306,0.00024973,2]
[394175980,1763353841565,-203.21851301,0.00024977,2]
[394175981,1763353841644,-333.64945345,0.00024977,2]
[394175982,1763353841654,-151.0,0.00024978,7]
[394175983,1763353841663,-151.0,0.00024978,7]
[394175984,1763353841672,-151.0,0.00024978,7]
[394175985,1763353841681,-10146.2513701,0.0002499,2]
[394175986,1763353841691,-1152.0,0.00025,2]
[394175987,1763353841700,-151.0,0.00025,5]
[394175988,1763353841709,-151.0,0.00025,9]
[394175989,1763353841719,-151.0,0.00025,8]
[394175990,1763353841728,-151.0,0.00025,5]
[394175991,1763353841741,-151.0,0.00025,10]
[394175992,1763353841750,-151.0,0.00025,6]
[394175993,1763353841759,-151.0,0.00025,8]
[394175994,1763353841768,-27062.49426248,0.00025,5]
[394175995,1763353841778,-51314.24269192,0.00025,15]
[394175996,1763353841787,-120590.51425607,0.00025,2]
[394175997,1763353841796,-407.99982657,0.00025,2]
[394175998,1763353841806,-206.521111,0.00025,7]
[394175999,1763353841816,-206.521111,0.00025,7]
[394176000,1763353841825,-206.521111,0.00025,7]
[394176001,1763353841834,-206.521111,0.00025,7]
[394176002,1763353841844,-151.0,0.00025,7]
[394176003,1763353841853,-151.0,0.00025,7]
[394176004,1763353841862,-500.0,0.00025003,2]
[394176005,1763353841872,-1431.38695596,0.00025164,2]
[394176006,1763353841881,-1500.0,0.00025268,2]
[394176007,1763353841891,-373.19050364,0.00025276,2]
[394176008,1763353841901,-500.0,0.00025276,2]
[394176009,1763353841910,-500.0,0.00025277,2]
[394176010,1763353841920,-300.0,0.00025295,20]
[394176011,1763353841930,-300.0,0.00025295,20]
[394176012,1763353841939,-300.0,0.00025295,20]
[394176013,1763353841949,-300.0,0.00025295,20]
[394176014,1763353841958,-300.0,0.00025295,20]
[394176015,1763353841968,-300.0,0.00025295,20]
[394176016,1763353841980,-300.0,0.00025295,20]
[394176017,1763353841992,-300.0,0.00025295,20]
[394176018,1763353842001,-300.0,0.00025295,20]
[394176019,1763353842010,-300.0,0.00025295,20]
[394176020,1763353842019,-300.0,0.00025295,20]
[394176021,1763353842028,-300.0,0.00025295,20]
[394176022,1763353842038,-300.0,0.00025295,20]
[394176023,1763353842048,-300.0,0.00025295,20]
[394176024,1763353842064,-300.0,0.00025295,20]
[394176025,1763353842082,-360.0,0.00025296,2]
[394176026,1763353842092,-5366.46,0.00025348,3]
[394176027,1763353842102,-2236.02,0.00025348,3]
[394176028,1763353842111,-1118.02,0.00025348,3]
[394176029,1763353842120,-1118.02,0.00025348,3]
[394176030,1763353842130,-600.0,0.00025488,20]
[394176031,1763353842140,-1000.0,0.00025521,2]
[394176032,1763353842149,-500.0,0.00025551,2]
[394176033,1763353842159,-500.0,0.00025619,2]
[394176034,1763353842168,-2000.0,0.00025816,2]
[394176035,1763353842179,-500.0,0.00025825,2]
[394176036,1763353842188,-460.0,0.00025844,2]
[394176037,1763353842197,-587.0,0.00025852,2]
[394176038,1763353842207,-1582.11436431,0.00026068,2]
[394176039,1763353842216,-1419.0,0.00026096,2]
[394176040,1763353842226,-636.91831408,0.00026099,2]
[394176041,1763353842235,-306.03392381,0.00026167,2]
[394176042,1763353842244,-373.19050364,0.00026288,2]
[394176043,1763353842253,-204.0,0.00026315,2]
[394176044,1763353842262,-151.0,0.00026336,7]
[394176045,1763353842271,-151.0,0.00026336,7]
[394176046,1763353842280,-197.929447,0.00026336,7]
[394176047,1763353842289,-197.929447,0.00026336,7]
[394176048,1763353842299,-197.929447,0.00026336,7]
[394176049,1763353842308,-197.929447,0.00026336,7]
[394176050,1763353842317,-271.67134,0.00026336,7]
[394176051,1763353842327,-271.67134,0.00026336,7]
[394176052,1763353842336,-151.0,0.00026336,7]
[394176053,1763353842345,-271.67134,0.00026336,7]
[394176054,1763353842355,-271.67134,0.00026336,7]
[394176055,1763353842364,-151.0,0.00026336,7]
[394176056,1763353842374,-2500.0,0.00026364,2]
[394176057,1763353842383,-500.0,0.00026372,2]
[394176058,1763353842392,-560.0,0.00026392,2]
[394176059,1763353842401,-581.56023348,0.000265,2]
[394176060,1763353842411,-3000.0,0.00026912,2]
[394176061,1763353842420,-660.0,0.0002694,2]
[394176062,1763353842429,-422.34,0.000272,14]
[394176063,1763353842439,-209.44,0.000272,7]
[394176064,1763353842449,-373.19050364,0.000273,2]
[394176065,1763353842458,-10146.2513701,0.00027387,2]
[394176066,1763353842468,-500.0,0.00027397,2]
[394176067,1763353842478,-500.0,0.00027397,2]
[394176068,1763353842488,-500.0,0.00027397,2]
[394176069,1763353842497,-500.0,0.00027397,2]
[394176070,1763353842507,-500.0,0.00027397,2]
[394176071,1763353842517,-500.0,0.00027397,2]
[394176072,1763353842526,-500.0,0.00027397,2]
[394176073,1763353842536,-500.0,0.00027397,2]
[394176074,1763353842545,-500.0,0.00027397,2]
[394176075,1763353842555,-500.0,0.00027397,2]
[394176076,1763353842564,-500.0,0.00027397,2]
[394176077,1763353842574,-500.0,0.00027397,2]
[394176078,1763353842583,-221.53429644,0.00027397,2]
[394176079,1763353842592,-151.0,0.00027397,7]
[394176080,1763353842602,-244.989443,0.00027397,7]
[394176081,1763353842611,-151.0,0.00027397,7]
[394176082,1763353842620,-153.593916,0.00027397,7]
[394176083,1763353842630,-151.0,0.00027397,7]
[394176084,1763353842640,-169.147943,0.00027397,7]
[394176085,1763353842650,-151.0,0.00027397,7]
[394176086,1763353842659,-151.0,0.00027397,7]
[394176087,1763353842668,-151.0,0.00027397,7]
[394176088,1763353842679,-153.859045,0.00027397,7]
[394176089,1763353842688,-151.0,0.00027397,7]
[394176090,1763353842698,-151.0,0.00027397,7]
[394176091,1763353842709,-151.0,0.00027397,7]
[394176092,1763353842720,-151.0,0.00027397,7]
[394176093,1763353842730,-151.0,0.00027397,7]
[394176094,1763353842740,-151.0,0.00027397,7]
[394176095,1763353842751,-152.736006,0.00027397,7]
[394176096,1763353842761,-153.060795,0.00027397,7]
[394176097,1763353842770,-154.477104,0.00027397,7]
[394176098,1763353842781,-151.401774,0.00027397,7]
[394176099,1763353842791,-151.0,0.00027397,7]
[394176100,1763353842800,-151.0,0.00027397,7]
[394176101,1763353842811,-151.0,0.00027397,7]
[394176102,1763353842820,-151.0,0.00027397,7]
[394176103,1763353842829,-151.0,0.00027397,7]
[394176104,1763353842839,-271.274429,0.00027397,7]
[394176105,1763353842848,-151.0,0.00027397,7]
[394176106,1763353842857,-151.50249,0.00027397,7]
[394176107,1763353842866,-152.836371,0.00027397,7]
[394176108,1763353842876,-151.0,0.00027397,7]
[394176109,1763353842885,-151.0,0.00027397,7]
[394176110,1763353842894,-153.844267,0.00027397,7]
[394176111,1763353842903,-251.495585,0.00027397,7]
[394176112,1763353842912,-251.495585,0.00027397,7]
[394176113,1763353842922,-251.495585,0.00027397,7]
[394176114,1763353842932,-251.495585,0.00027397,7]
[394176115,1763353842941,-251.495585,0.00027397,7]
[394176116,1763353842950,-251.495585,0.00027397,7]
[394176117,1763353842960,-251.495585,0.00027397,7]
[394176118,1763353842970,-251.495585,0.00027397,7]
[394176119,1763353842979,-251.495585,0.00027397,7]
[394176120,1763353842988,-251.495585,0.00027397,7]
[394176121,1763353842998,-251.495585,0.00027397,7]
[394176122,1763353843007,-251.495585,0.00027397,7]
[394176123,1763353843016,-151.0,0.00027397,7]
[394176124,1763353843026,-151.0,0.00027397,7]
[394176125,1763353843036,-151.0,0.00027397,7]
[394176126,1763353843045,-151.0,0.00027397,7]
[394176127,1763353843054,-151.0,0.00027397,7]
[394176128,1763353843063,-151.0,0.00027397,7]
[394176129,1763353843072,-151.0,0.00027397,7]
[394176130,1763353843082,-151.0,0.00027397,7]
[394176131,1763353843091,-151.0,0.00027397,7]
[394176132,1763353843100,-151.0,0.00027397,7]
[394176133,1763353843109,-151.0,0.00027397,7]
[394176134,1763353843119,-151.0,0.00027397,7]
[394176135,1763353843128,-151.0,0.00027397,7]
[394176136,1763353843138,-280.164424,0.00027397,7]
[394176137,1763353843146,-151.0,0.00027397,7]
[394176138,1763353843156,-151.0,0.00027397,7]
[394176139,1763353843166,-151.0,0.00027397,7]
[394176141,1763353843236,-151.0,0.00027397,7]
[394176142,1763353843251,-186.367292,0.00027397,7]
[394176143,1763353843261,-186.367292,0.00027397,7]
[394176144,1763353843270,-186.367292,0.00027397,7]
[394176145,1763353843279,-186.367292,0.00027397,7]
[394176146,1763353843289,-186.367292,0.00027397,7]
[394176147,1763353843298,-186.367292,0.00027397,7]
[394176148,1763353843308,-151.0,0.00027397,7]
[394176149,1763353843317,-152.884796,0.00027397,7]
[394176150,1763353843326,-186.367292,0.00027397,7]
[394176151,1763353843336,-186.367292,0.00027397,7]
[394176152,1763353843345,-186.367292,0.00027397,7]
[394176153,1763353843355,-186.367292,0.00027397,7]
[394176154,1763353843365,-186.367292,0.00027397,7]
[394176155,1763353843374,-186.367292,0.00027397,7]
[394176156,1763353843384,-151.0,0.00027397,7]
[394176157,1763353843393,-151.0,0.00027397,7]
[394176158,1763353843403,-151.0,0.00027397,7]
[394176159,1763353843412,-151.0,0.00027397,7]
[394176160,1763353843421,-151.0,0.00027397,7]
[394176161,1763353843431,-151.0,0.00027397,7]
[394176162,1763353843440,-151.0,0.00027397,7]
[394176163,1763353843449,-151.0,0.00027397,7]
[394176164,1763353843458,-151.0,0.00027397,7]
[394176165,1763353843467,-151.0,0.00027397,7]
[394176166,1763353843477,-151.0,0.00027397,7]
[394176167,1763353843486,-151.0,0.00027397,7]
[394176168,1763353843495,-194.361192,0.00027397,7]
[394176169,1763353843504,-151.0,0.00027397,7]
[394176170,1763353843514,-152.418207,0.00027397,7]
[394176171,1763353843523,-151.0,0.00027397,7]
[394176172,1763353843533,-151.0,0.00027397,7]
[394176173,1763353843542,-151.0,0.00027397,7]
[394176174,1763353843552,-151.0,0.00027397,7]
[394176175,1763353843561,-156.759598,0.00027397,7]
[394176176,1763353843571,-151.0,0.00027397,7]
[394176177,1763353843580,-151.0,0.00027397,7]
[394176178,1763353843589,-151.0,0.00027397,7]
[394176179,1763353843599,-151.0,0.00027397,7]
[394176180,1763353843608,-160.771968,0.00027397,7]
[394176181,1763353843617,-151.0,0.00027397,7]
[394176182,1763353843626,-153.526501,0.00027397,7]
[394176183,1763353843636,-151.0,0.00027397,7]
[394176184,1763353843645,-243.173132,0.00027397,7]
[394176185,1763353843654,-151.0,0.00027397,7]
[394176186,1763353843663,-171.715225,0.00027397,7]
[394176187,1763353843673,-151.0,0.00027397,7]
[394176188,1763353843683,-151.0,0.00027397,7]
[394176189,1763353843692,-151.0,0.00027397,7]
[394176190,1763353843701,-151.0,0.00027397,7]
[394176191,1763353843711,-151.0,0.00027397,7]
[394176192,1763353843720,-151.0,0.00027397,7]
[394176193,1763353843730,-151.0,0.00027397,7]
[394176194,1763353843745,-151.0,0.00027397,7]
[394176195,1763353843755,-151.0,0.00027397,7]
[394176196,1763353843765,-151.0,0.00027397,7]
[394176197,1763353843777,-151.0,0.00027397,7]
[394176198,1763353843786,-151.0,0.00027397,7]
[394176199,1763353843796,-151.0,0.00027397,7]
[394176200,1763353843807,-151.0,0.00027397,7]
[394176201,1763353843817,-151.0,0.00027397,7]
[394176202,1763353843826,-151.0,0.00027397,7]
[394176203,1763353843836,-151.0,0.00027397,7]
[394176204,1763353843845,-151.0,0.00027397,7]
[394176205,1763353843855,-151.0,0.00027397,7]
[394176206,1763353843865,-151.0,0.00027397,7]
[394176207,1763353843875,-151.0,0.00027397,7]
[394176208,1763353843884,-151.0,0.00027397,7]
[394176209,1763353843894,-252.557625,0.00027397,7]
[394176210,1763353843904,-252.557625,0.00027397,7]
[394176211,1763353843913,-252.557625,0.00027397,7]
[394176212,1763353843924,-252.557625,0.00027397,7]
[394176213,1763353843934,-252.557625,0.00027397,7]
[394176214,1763353843944,-252.557625,0.00027397,7]
[394176215,1763353843954,-252.557625,0.00027397,7]
[394176216,1763353843963,-252.557625,0.00027397,7]
[394176217,1763353843973,-151.0,0.00027397,7]
[394176218,1763353843982,-151.0,0.00027397,7]
[394176219,1763353843993,-153.064982,0.00027397,7]
[394176220,1763353844003,-151.0,0.00027397,7]
[394176221,1763353844012,-293.110569,0.00027397,7]
[394176222,1763353844022,-151.0,0.00027397,7]
[394176223,1763353844031,-151.0,0.00027397,7]
[394176224,1763353844041,-151.0,0.00027397,7]
[394176225,1763353844050,-151.0,0.00027397,7]
[394176226,1763353844060,-498.608934,0.00027397,7]
[394176227,1763353844070,-498.608934,0.00027397,7]
[394176228,1763353844079,-151.0,0.00027397,7]
[394176229,1763353844090,-498.608934,0.00027397,7]
[394176230,1763353844099,-498.608934,0.00027397,7]
[394176231,1763353844109,-498.608934,0.00027397,7]
[394176232,1763353844119,-151.0,0.00027397,7]
[394176233,1763353844129,-498.608934,0.00027397,7]
[394176234,1763353844138,-151.0,0.00027397,7]
[394176235,1763353844148,-227.49909,0.00027397,7]
[394176236,1763353844157,-151.0,0.00027397,7]
[394176237,1763353844167,-498.608934,0.00027397,7]
[394176238,1763353844178,-227.49909,0.00027397,7]
[394176239,1763353844188,-151.0,0.00027397,7]
[394176240,1763353844198,-498.608934,0.00027397,7]
[394176241,1763353844207,-151.0,0.00027397,7]
[394176242,1763353844217,-227.49909,0.00027397,7]
[394176243,1763353844227,-164.809455,0.00027397,7]
[394176244,1763353844236,-227.49909,0.00027397,7]
[394176245,1763353844247,-227.49909,0.00027397,7]
[394176246,1763353844257,-227.49909,0.00027397,7]
[394176247,1763353844267,-151.0,0.00027397,7]
[394176248,1763353844276,-227.49909,0.00027397,7]
[394176249,1763353844286,-227.49909,0.00027397,7]
[394176250,1763353844295,-151.0,0.00027397,7]
[394176251,1763353844305,-151.0,0.00027397,7]
[394176252,1763353844315,-151.0,0.00027397,7]
[394176253,1763353844324,-151.0,0.00027397,7]
[394176254,1763353844334,-151.0,0.00027397,7]
[394176255,1763353844344,-157.1355,0.00027397,7]
[394176256,1763353844354,-151.0,0.00027397,7]
[394176257,1763353844364,-151.0,0.00027397,7]
[394176258,1763353844374,-151.0,0.00027397,7]
[394176259,1763353844383,-151.0,0.00027397,7]
[394176260,1763353844392,-151.0,0.00027397,7]
[394176261,1763353844402,-151.0,0.00027397,7]
[394176262,1763353844411,-151.0,0.00027397,7]
[394176263,1763353844420,-151.0,0.00027397,7]
[394176264,1763353844431,-151.0,0.00027397,7]
[394176265,1763353844441,-151.0,0.00027397,7]
[394176266,1763353844450,-151.0,0.00027397,7]
[394176267,1763353844459,-151.0,0.00027397,7]
[394176268,1763353844468,-152.768181,0.00027397,7]
[394176269,1763353844477,-151.0,0.00027397,7]